fUSD/lending_fUSD_20240109
["ID","MTS","AMOUNT","RATE_DAILY","PERIOD"]
[310943924,1704826242221,-180.36959869,0.00036089,2]
[310943925,1704826242232,-180.36959867,0.00036089,2]
[310943926,1704826242241,-855.736,0.00036154,2]
[310943927,1704826242251,-315.888,0.00036154,2]
[310943928,1704826242260,-318.0,0.00036154,2]
[310943929,1704826242270,-150.0,0.00036154,2]
[310943930,1704826242279,-695.388652,0.00036163,2]
[310943931,1704826242288,-330.11,0.00036164,2]
[310943932,1704826242297,-585.71812529,0.00036209,7]
[310943933,1704826242307,-695.388652,0.00036241,2]
[310943934,1704826242316,-692.2,0.00036286,2]
[310943935,1704826242325,-155.0,0.00036298,2]
[310943936,1704826242334,-691.04005445,0.00036298,60]
[310943937,1704826242343,-1031.64,0.000363,3]
[310943938,1704826242353,-1031.64,0.000363,3]
[310943939,1704826242363,-1031.64,0.000363,3]
[310943940,1704826242373,-1031.64,0.000363,3]
[310943941,1704826242382,-1031.64,0.000363,3]
[310943942,1704826242391,-1031.64,0.000363,3]
[310943943,1704826242401,-1031.64,0.000363,3]
[310943944,1704826242411,-1031.64,0.000363,3]
[310943945,1704826242421,-1031.64,0.000363,3]
[310943946,1704826242431,-1031.64,0.000363,3]
[310943947,1704826242441,-1031.64,0.000363,3]
[310943948,1704826242451,-1031.64,0.000363,3]
[310943949,1704826242460,-1031.64,0.000363,3]
[310943950,1704826242470,-1031.64,0.000363,3]
[310943951,1704826242479,-1031.64,0.000363,3]
[310943952,1704826242489,-1031.64,0.000363,3]
[310943953,1704826242499,-1031.64,0.000363,3]
[310943954,1704826242509,-1031.64,0.000363,3]
[310943955,1704826242518,-1031.64,0.000363,3]
[310943956,1704826242528,-1031.64,0.000363,3]
[310943957,1704826242537,-55555.0,0.000363,3]
[310943958,1704826242547,-156.42627128,0.000363,2]
[310943959,1704826242557,-153.0,0.000363,2]
[310943960,1704826242566,-255.75237296,0.00036317,4]
[310943961,1704826242575,-695.388652,0.00036319,2]
[310943962,1704826242584,-1257.55387113,0.00036332,2]
[310943963,1704826242594,-1079.8495141,0.00036344,8]
[310943964,1704826242602,-2000.0,0.0003636,2]
[310943965,1704826242612,-200.0,0.0003636,2]
[310943966,1704826242621,-1558.14324303,0.00036373,8]
[310943967,1704826242631,-229.90621411,0.00036373,8]
[310943968,1704826242641,-356.07199955,0.00036373,8]
[310943969,1704826242652,-197.12308347,0.00036373,7]
[310943970,1704826242661,-637.94163617,0.00036373,8]
[310943971,1704826242671,-547.72174115,0.00036373,8]
[310943972,1704826242680,-333.45116101,0.00036373,7]
[310943973,1704826242689,-416.54566642,0.00036373,8]
[310943974,1704826242699,-1282.2463343,0.00036373,8]
[310943975,1704826242709,-267.06092287,0.00036373,7]
[310943976,1704826242718,-835.29502414,0.00036373,8]
[310943977,1704826242728,-695.388652,0.00036397,2]
[310943978,1704826242737,-157.74664033,0.000364,2]
[310943979,1704826242747,-157.74664031,0.000364,2]
[310943980,1704826242756,-157.74664031,0.000364,2]
[310943982,1704826242766,-157.74664031,0.000364,2]
[310943985,1704826242775,-157.74664031,0.000364,2]
[310943987,1704826242785,-157.74664031,0.000364,2]
[310943988,1704826242794,-157.74664031,0.000364,2]
[310943989,1704826242804,-157.74664031,0.000364,2]
[310943990,1704826242814,-157.74664031,0.000364,2]
[310943991,1704826242824,-157.74664031,0.000364,2]
[310943992,1704826242834,-150.0,0.00036413,2]
[310943993,1704826242844,-169.81,0.00036438,2]
[310943995,1704826242855,-695.388652,0.00036475,2]
[310943998,1704826242866,-155.0,0.000365,2]
[310943999,1704826242878,-150.0,0.00036521,2]
[310944001,1704826242888,-695.388652,0.00036553,2]
[310944003,1704826242898,-150.92,0.00036613,15]
[310944007,1704826242908,-695.388652,0.00036632,2]
[310944011,1704826242918,-1587.83734612,0.00036637,2]
[310944016,1704826242927,-174.26,0.00036637,2]
[310944021,1704826242937,-3331.99159653,0.00036662,9]
[310944026,1704826242947,-3280.22850328,0.000367,10]
[310944031,1704826242959,-695.388652,0.0003671,2]
[310944035,1704826242971,-2000.0,0.00036724,2]
[310944039,1704826242981,-200.0,0.00036724,2]
[310944043,1704826242991,-204.0,0.0003677,10]
[310944047,1704826243002,-695.388652,0.00036788,2]
[310944051,1704826243012,-793.0,0.00036796,2]
[310944054,1704826243024,-153.84,0.00036815,2]
[310944057,1704826243034,-695.388652,0.00036866,2]
[310944060,1704826243045,-250.0,0.000369,2]
[310944063,1704826243057,-150.0,0.000369,2]
[310944066,1704826243072,-900.0,0.000369,13]
[310944069,1704826243083,-695.388652,0.00036944,2]
[310944072,1704826243094,-167.0,0.00036957,2]
[310944075,1704826243105,-1000.0,0.00036986,2]
[310944078,1704826243116,-1248.33,0.00036986,2]
[310944081,1704826243132,-155.0,0.00036987,2]
[310944083,1704826243147,-2000.0,0.00037,2]
[310944085,1704826243158,-150.0,0.00037,2]
[310944086,1704826243170,-150.0,0.00037,2]
[310944088,1704826243182,-150.0,0.00037,2]
[310944091,1704826243193,-150.0,0.00037,2]
[310944092,1704826243204,-150.0,0.00037,2]
[310944094,1704826243215,-150.0,0.00037,2]
[310944096,1704826243226,-150.0,0.00037,2]
[310944098,1704826243237,-150.0,0.00037,2]
[310944100,1704826243247,-150.0,0.00037,2]
[310944102,1704826243258,-150.0,0.00037,2]
[310944104,1704826243271,-150.0,0.00037,2]
[310944107,1704826243280,-150.0,0.00037,2]
[310944108,1704826243291,-150.0,0.00037,2]
[310944109,1704826243301,-150.0,0.00037,2]
[310944110,1704826243310,-150.0,0.00037,2]
[310944111,1704826243319,-150.0,0.00037,2]
[310944112,1704826243329,-150.0,0.00037,2]
[310944113,1704826243338,-150.0,0.00037,2]
[310944114,1704826243348,-150.0,0.00037,2]
[310944115,1704826243357,-150.0,0.00037,2]
[310944116,1704826243367,-1130.0,0.00037,7]
[310944117,1704826243377,-500.0,0.00037,2]
[310944118,1704826243386,-346.34,0.00037013,2]
[310944119,1704826243395,-695.388652,0.00037022,2]
[310944120,1704826243405,-803.75,0.00037075,2]
[310944121,1704826243414,-695.388652,0.000371,2]
[310944122,1704826243424,-250.0,0.00037174,2]
[310944123,1704826243433,-695.388652,0.00037178,2]
[310944124,1704826243442,-775.57805281,0.00037225,2]
[310944125,1704826243452,-571.0276091,0.00037225,2]
[310944126,1704826243461,-208.1229971,0.00037225,2]
[310944136,1704826243715,-186.70978932,0.00037225,2]
[310944137,1704826243725,-150.0,0.00037228,2]
[310944138,1704826243735,-150.0,0.00037228,2]
[310944139,1704826243744,-202184.7972,0.00037229,2]
[310944140,1704826243754,-277.3540744,0.00037238,8]
[310944141,1704826243764,-695.388652,0.00037256,2]
[310944142,1704826243774,-1000.0,0.0003726,4]
[310944143,1704826243783,-1248.33,0.0003726,4]
[310944144,1704826243793,-692.2,0.00037264,2]
[310944145,1704826243804,-444.27979208,0.00037325,4]
[310944146,1704826243814,-133230.37521309,0.00037325,2]
[310944147,1704826243823,-155.0,0.00037325,4]
[310944148,1704826243833,-1245.75987952,0.00037325,4]
[310944149,1704826243842,-692.5785617,0.00037326,4]
[310944150,1704826243852,-3898.91905065,0.00037326,4]
[310944151,1704826243861,-580.80321114,0.00037326,4]
[310944152,1704826243871,-1424.24937271,0.00037326,2]
[310944153,1704826243883,-155.0,0.00037326,4]
[310944154,1704826243893,-695.388652,0.00037334,2]
[310944155,1704826243903,-11297.31,0.00037334,10]
[310944156,1704826243912,-9414.42,0.00037334,10]
[310944157,1704826243921,-7845.35,0.00037334,10]
[310944158,1704826243931,-54580.65957157,0.00037344,2]
[310944159,1704826243940,-7549.33974606,0.00037344,2]
[310944160,1704826243950,-47219.46647886,0.00037344,2]
[310944161,1704826243960,-10282.26587039,0.00037344,2]
[310944162,1704826243969,-426.99434277,0.00037344,2]
[310944163,1704826243978,-875.05203853,0.00037344,10]
[310944164,1704826243988,-10000.0,0.00037344,120]
[310944165,1704826243998,-169.00772569,0.00037344,120]
[310944166,1704826244008,-285.08838629,0.00037344,120]
[310944167,1704826244017,-323.32472371,0.00037344,120]
[310944168,1704826244027,-500.0,0.00037344,120]
[310944169,1704826244037,-1965.399855,0.00037344,30]
[310944170,1704826244047,-355.02014423,0.00037344,2]
[310944171,1704826244057,-1937.236888,0.00037344,30]
[310944172,1704826244068,-304.856372,0.00037344,30]
[310944173,1704826244077,-276.431819,0.000374,2]
[310944174,1704826244087,-3331.99159653,0.00037411,10]
[310944175,1704826244097,-695.388652,0.00037412,2]
[310944176,1704826244107,-150.0,0.00037448,2]
[310944177,1704826244117,-695.388653,0.0003749,2]
[310944178,1704826244128,-151.0,0.00037497,2]
[310944179,1704826244138,-969.36555761,0.000375,5]
[310944180,1704826244148,-150.0,0.00037521,2]
[310944181,1704826244158,-1000.0,0.00037534,6]
[310944182,1704826244168,-1248.33,0.00037534,6]
[310944183,1704826244178,-152.0,0.00037589,3]
[310944184,1704826244187,-157.4,0.000376,3]
[310944185,1704826244197,-157.4,0.000376,3]
[310944186,1704826244207,-157.4,0.000376,3]
[310944187,1704826244216,-157.4,0.000376,3]
[310944188,1704826244226,-161.79829213,0.00037694,7]
[310944189,1704826244236,-153.84,0.00037736,2]
[310944190,1704826244245,-363.58513323,0.000378,2]
[310944191,1704826244254,-1000.0,0.00037808,10]
[310944192,1704826244263,-1248.33,0.00037808,10]
[310944193,1704826244272,-585.71812529,0.00037859,8]
[310944194,1704826244282,-167.16774484,0.0003789,2]
[310944195,1704826244291,-951.48373115,0.00037897,2]
[310944196,1704826244301,-150.0,0.00037899,2]
[310944197,1704826244310,-150.0,0.00037899,2]
[310944198,1704826244319,-1200.0,0.000379,13]
[310944199,1704826244328,-697546.447316,0.000379,2]
[310944200,1704826244338,-153.0,0.000379,2]
[310944201,1704826244347,-4724.52,0.0003793,4]
[310944202,1704826244356,-152.42425773,0.00037996,2]
[310944203,1704826244366,-5347.74,0.00038,2]
[310944204,1704826244376,-5000.0,0.00038,30]
[310944205,1704826244386,-2000.0,0.00038,2]
[310944206,1704826244395,-1000.0,0.00038,8]
[310944207,1704826244404,-3000.0,0.00038,7]
[310944208,1704826244413,-1000.0,0.00038082,12]
[310944209,1704826244422,-1248.33,0.00038082,12]
[310944210,1704826244432,-156.21290733,0.00038128,8]
[310944211,1704826244441,-150.12,0.0003816,2]
[310944212,1704826244451,-3331.99159653,0.00038161,11]
[310944213,1704826244460,-1587.83734612,0.00038216,2]
[310944214,1704826244470,-692.2,0.00038243,2]
[310944215,1704826244479,-164.0,0.00038255,2]
[310944216,1704826244488,-5093.84301975,0.00038303,12]
[310944217,1704826244497,-953.03,0.00038307,2]
[310944218,1704826244507,-3757.81679898,0.00038332,11]
[310944219,1704826244516,-803.75,0.00038352,2]
[310944220,1704826244526,-4473.04,0.00038354,2]
[310944221,1704826244535,-153.0,0.00038354,2]
[310944222,1704826244544,-1000.0,0.00038356,14]
[310944223,1704826244554,-1248.33,0.00038356,14]
[310944224,1704826244563,-666.0,0.00038356,2]
[310944225,1704826244572,-231.0354453,0.00038357,2]
[310944226,1704826244582,-7079.54009521,0.00038395,12]
[310944227,1704826244591,-4558.54314145,0.00038395,12]
[310944228,1704826244600,-4791.49516247,0.00038395,12]
[310944229,1704826244609,-500.0,0.000384,2]
[310944230,1704826244618,-8000.0,0.000384,2]
[310944231,1704826244631,-6983.20028382,0.00038493,12]
[310944232,1704826244640,-14827.28484198,0.000385,7]
[310944233,1704826244650,-150.0,0.00038521,2]
[310944234,1704826244659,-157.63771416,0.00038537,7]
[310944235,1704826244669,-277.3540744,0.00038573,9]
[310944236,1704826244678,-1000.0,0.0003863,16]
[310944237,1704826244688,-1248.33,0.0003863,16]
[310944238,1704826244698,-153.84,0.00038656,2]
[310944239,1704826244707,-157.63771416,0.00038673,7]
[310944240,1704826244716,-22875.84468121,0.000388,4]
[310944241,1704826244726,-157.63771416,0.00038858,7]
[310944242,1704826244736,-204.0,0.00038882,15]
[310944243,1704826244746,-1000.0,0.00038904,18]
[310944244,1704826244755,-1248.33,0.00038904,18]
[310944245,1704826244765,-3331.99159653,0.00038911,12]
[310944246,1704826244774,-200.0,0.00038987,4]
[310944247,1704826244783,-157.63771416,0.00038993,7]
[310944248,1704826244793,-196.69246782,0.00039,4]
[310944249,1704826244802,-1112.36550744,0.00039,2]
[310944250,1704826244812,-126304.40494945,0.00039,2]
[310944251,1704826244821,-1000.0,0.00039,2]
[310944252,1704826244831,-2000.0,0.00039,2]
[310944253,1704826244840,-1031.64,0.00039,3]
[310944254,1704826244850,-1031.64,0.00039,3]
[310944255,1704826244860,-1031.64,0.00039,3]
[310944256,1704826244869,-1031.64,0.00039,3]
[310944257,1704826244880,-1031.64,0.00039,3]
[310944258,1704826244890,-1031.64,0.00039,3]
[310944259,1704826244899,-1031.64,0.00039,3]
[310944260,1704826244909,-1031.64,0.00039,3]
[310944261,1704826244918,-1031.64,0.00039,3]
[310944262,1704826244928,-1031.64,0.00039,3]
[310944263,1704826244938,-1031.64,0.00039,3]
[310944264,1704826244947,-1031.64,0.00039,3]
[310944265,1704826244957,-1031.64,0.00039,3]
[310944266,1704826244966,-1031.64,0.00039,3]
[310944267,1704826244976,-1031.64,0.00039,3]
[310944268,1704826244986,-1031.64,0.00039,3]
[310944269,1704826244996,-1031.64,0.00039,3]
[310944270,1704826245005,-1031.64,0.00039,3]
[310944271,1704826245015,-1031.64,0.00039,3]
[310944272,1704826245026,-1031.64,0.00039,3]
[310944273,1704826245036,-1000.0,0.00039,9]
[310944274,1704826245045,-3000.0,0.00039,8]
[310944275,1704826245057,-434.7,0.00039,7]
[310944276,1704826245067,-414.44109058,0.00039095,5]
[310944277,1704826245081,-353.87,0.00039097,2]
[310944278,1704826245091,-775.57805281,0.00039152,2]
[310944279,1704826245100,-571.02760908,0.00039152,2]
[310944280,1704826245109,-208.12299709,0.00039152,2]
[310944281,1704826245118,-1000.0,0.00039178,20]
[310944282,1704826245129,-1248.33,0.00039178,20]
[310944283,1704826245139,-2436.74,0.00039178,2]
[310944284,1704826245149,-692.2,0.00039221,2]
[310944285,1704826245158,-157.63771416,0.00039254,7]
[310944286,1704826245168,-199.8,0.0003926,2]
[310944287,1704826245177,-345.91472599,0.00039275,120]
[310944288,1704826245186,-346.34,0.00039277,2]
[310944289,1704826245195,-951.48373115,0.00039277,2]
[310944290,1704826245205,-250000.0,0.0003928,2]
[310944291,1704826245214,-158.08650101,0.00039438,7]
[310944292,1704826245223,-500.0,0.00039452,2]
[310944293,1704826245233,-500.0,0.00039452,2]
[310944294,1704826245241,-500.0,0.00039452,2]
[310944295,1704826245251,-500.0,0.00039452,2]
[310944296,1704826245260,-500.0,0.00039452,2]
[310944297,1704826245269,-500.0,0.00039452,2]
[310944298,1704826245278,-500.0,0.00039452,2]
[310944299,1704826245288,-500.0,0.00039452,2]
[310944300,1704826245297,-500.0,0.00039452,2]
[310944301,1704826245307,-500.0,0.00039452,2]
[310944302,1704826245316,-500.0,0.00039452,2]
[310944303,1704826245325,-500.0,0.00039452,2]
[310944304,1704826245334,-500.0,0.00039452,2]
[310944305,1704826245344,-1000.0,0.00039452,22]
[310944306,1704826245353,-1248.33,0.00039452,22]
[310944307,1704826245363,-585.71812529,0.0003951,9]
[310944308,1704826245372,-150.0,0.00039521,2]
[310944309,1704826245383,-153.84,0.00039576,2]
[310944310,1704826245393,-803.75,0.0003963,2]
[310944311,1704826245403,-3331.99159653,0.00039661,13]
[310944312,1704826245414,-7999.0,0.000397,2]
[310944313,1704826245424,-500.0,0.00039725,10]
[310944314,1704826245433,-1000.0,0.00039726,24]
[310944315,1704826245442,-1248.33,0.00039726,24]
[310944316,1704826245451,-1587.83734612,0.00039795,2]
[310944317,1704826245461,-150.0,0.00039799,2]
[310944318,1704826245470,-150.0,0.00039799,2]
[310944319,1704826245479,-980.48609171,0.000398,4]
[310944320,1704826245489,-663876.41577261,0.000398,4]
[310944321,1704826245499,-153.0,0.000398,2]
[310944322,1704826245508,-275.7068033,0.000399,4]
[310944323,1704826245517,-1500.0,0.000399,14]
[310944324,1704826245526,-277.3540744,0.00039907,9]
[310944325,1704826245536,-200.0,0.00039987,5]
[310944326,1704826245545,-951.48373115,0.00039997,2]
[310944327,1704826245555,-617.44681957,0.0004,4]
[310944328,1704826245564,-6808.57416919,0.0004,4]
[310944329,1704826245574,-6278.09481333,0.0004,4]
[310944330,1704826245583,-5000.0,0.0004,3]
[310944331,1704826245592,-272.7969938,0.0004,10]
[310944332,1704826245602,-1000.0,0.0004,26]
[310944333,1704826245611,-325018.10774531,0.0004,2]
[310944344,1704826246359,-150.91,0.00034,2]
[310944345,1704826246368,-117389.79205413,0.0004,2]
[310944373,1704826247030,-150.91,0.00034,2]
[310944374,1704826247039,-150.91,0.00034,2]
[310944375,1704826247050,-150.91,0.00034,2]
[310944376,1704826247062,-150.91,0.00034,2]
[310944377,1704826247071,-150.91,0.00034,2]
[310944378,1704826247080,-150.91,0.00034,2]
[310944379,1704826247089,-150.91,0.00034,2]
[310944380,1704826247099,-150.91,0.00034402,2]
[310944381,1704826247108,-150.91,0.0003489,2]
[310944382,1704826247117,-150.91,0.0003499,2]
[310944383,1704826247129,-150.91,0.00035058,2]
[310944384,1704826247139,-150.91,0.00035332,2]
[310944385,1704826247148,-150.91,0.0003539,2]
[310944386,1704826247158,-150.91,0.00035919,2]
[310944387,1704826247167,-150.91,0.00035987,2]
[310944388,1704826247176,-150.91,0.00035987,2]
[310944389,1704826247185,-150.91,0.00035987,2]
[310944390,1704826247194,-150.91,0.00035987,2]
[310944391,1704826247203,-150.91,0.00035987,2]
[310944392,1704826247212,-150.91,0.0003599,2]
[310944393,1704826247221,-157.74664031,0.000364,2]
[310944394,1704826247231,-2902.84819354,0.00037334,10]
[310944395,1704826247260,-150.91,0.00036199,2]
[310944396,1704826247269,-1659.77367416,0.00037334,10]
[310944397,1704826247456,-155.0,0.00022996,2]
[310944398,1704826247465,-150.91,0.0003629,2]
[310944399,1704826247474,-150.91,0.0003629,2]
[310944400,1704826247483,-150.91,0.0003629,2]
[310944401,1704826247491,-150.91,0.00036714,2]
[310944402,1704826247501,-1975.1681323,0.00037334,10]
[310944403,1704826247510,-10074.88796676,0.0004,2]
[310944404,1704826247530,-150.91,0.00037219,2]
[310944405,1704826247538,-231.77,0.0004,2]
[310944406,1704826247550,-143.72128629,0.0004,2]
[310944407,1704826247559,-498.02103957,0.0004,60]
[310944408,1704826248262,-150.91,0.00037219,2]
[310944409,1704826248272,-150.91,0.00037219,2]
[310944410,1704826248281,-150.91,0.00037219,2]
[310944411,1704826248291,-150.91,0.00037219,2]
[310944412,1704826248301,-150.91,0.00037219,2]
[310944413,1704826248311,-150.91,0.00037219,2]
[310944414,1704826248321,-150.91,0.00037219,2]
[310944415,1704826248330,-150.91,0.00037315,2]
[310944416,1704826248340,-150.91,0.00037315,2]
[310944417,1704826248349,-150.91,0.00037315,2]
[310944418,1704826248359,-150.91,0.00037315,2]
[310944419,1704826248369,-150.0441847,0.00037315,2]
[310944420,1704826248383,-0.8658153,0.00037315,2]
[310944421,1704826248393,-4501.97896043,0.0004,60]
[310944422,1704826248403,-1000.0,0.0004,4]
[310944423,1704826248412,-1248.33,0.0004,26]
[310944424,1704826248422,-403.31866439,0.0004,3]
[310944425,1704826248432,-164.22078078,0.0004,7]
[310944426,1704826248442,-2000.0,0.0004,2]
[310944427,1704826248451,-5000.0,0.0004,10]
[310944428,1704826248460,-255.0,0.0004,12]
[310944429,1704826248470,-1000.0,0.0004,14]
[310944430,1704826248479,-5623.421327,0.0004,10]
[310944431,1704826248488,-255.0,0.0004,12]
[310944432,1704826248498,-153.0,0.0004,2]
[310944433,1704826248508,-4000.0,0.0004,2]
[310944434,1704826248517,-270.86215678,0.00040125,7]
[310944435,1704826248527,-692.2,0.000402,2]
[310944436,1704826248537,-1000.0,0.00040273,28]
[310944437,1704826248547,-1248.33,0.00040273,28]
[310944438,1704826248557,-150.92,0.00040349,15]
[310944439,1704826248567,-10046.1,0.00040356,2]
[310944440,1704826248576,-5000.0,0.000404,2]
[310944441,1704826248585,-10000.0,0.000404,3]
[310944442,1704826248594,-3331.99159653,0.0004041,14]
[310944443,1704826248603,-157.63771416,0.00040438,7]
[310944444,1704826248612,-793.0,0.00040476,2]
[310944445,1704826248621,-150.0,0.00040493,2]
[310944446,1704826248631,-313.91,0.00040493,2]
[310944447,1704826248640,-150.0,0.00040493,2]
[310944448,1704826248650,-313.91,0.00040493,2]
[310944449,1704826248659,-150.0,0.00040493,2]
[310944450,1704826248669,-313.49,0.00040493,2]
[310944451,1704826248679,-407.65,0.00040493,2]
[310944452,1704826248688,-407.65,0.00040493,2]
[310944453,1704826248697,-150.0,0.00040493,2]
[310944454,1704826248706,-407.65,0.00040493,2]
[310944455,1704826248715,-406.81,0.00040493,2]
[310944456,1704826248724,-153.84,0.00040497,2]
[310944457,1704826248733,-82000.0,0.000405,2]
[310944458,1704826248743,-150.0,0.00040521,2]
[310944459,1704826248752,-554.90932395,0.00040547,30]
[310944460,1704826248761,-1248.33,0.00040547,30]
[310944461,1704826248771,-161.78440978,0.00040606,7]
[310944462,1704826248781,-330.11,0.00040685,2]
[310944463,1704826248790,-300.0,0.000407,14]
[310944464,1704826248799,-150.12,0.00040704,2]
[310944465,1704826248809,-199.8,0.00040733,2]
[310944466,1704826248818,-300.0,0.000408,14]
[310944467,1704826248828,-1248.33,0.00040821,32]
[310944468,1704826248837,-500.0,0.00040821,10]
[310944469,1704826248846,-400.66,0.00040821,2]
[310944470,1704826248855,-939.21,0.00040821,2]
[310944471,1704826248865,-801.32,0.00040821,2]
[310944472,1704826248877,-939.21,0.00040821,2]
[310944473,1704826248886,-1064.21451,0.00040838,3]
[310944474,1704826248896,-150.0,0.00040879,2]
[310944475,1704826248905,-300.0,0.000409,14]
[310944476,1704826248914,-150.0,0.00040923,2]
[310944477,1704826248924,-150.0,0.00040928,2]
[310944478,1704826248934,-157.63771416,0.00040946,7]
[310944479,1704826248943,-3000.0,0.00040968,2]
[310944480,1704826248954,-150.0,0.00040976,2]
[310944481,1704826248964,-500.0,0.00040987,32]
[310944482,1704826248975,-200.0,0.00040987,20]
[310944483,1704826248985,-1162.0,0.0004099,3]
[310944484,1704826248995,-204.0,0.00040994,19]
[310944485,1704826249005,-1055.6879893,0.00040998,3]
[310944486,1704826249015,-150.0,0.00040999,3]
[310944487,1704826249024,-150.0,0.00040999,3]
[310944488,1704826249034,-1480.04650595,0.00041,2]
[310944489,1704826249044,-10021.8011883,0.00041,4]
[310944490,1704826249055,-20000.0,0.00041,30]
[310944491,1704826249066,-19292.36,0.00041,30]
[310944492,1704826249075,-1000.0,0.00041,4]
[310944493,1704826249085,-76049.6,0.00041,5]
[310944494,1704826249095,-13500.0,0.00041,4]
[310944495,1704826249105,-2000.0,0.00041,2]
[310944496,1704826249256,-4999.99,0.00041,5]
[310944497,1704826249268,-4999.99,0.00041,5]
[310944498,1704826249278,-8750.0,0.00041,5]
[310944499,1704826249288,-8750.0,0.00041,5]
[310944500,1704826249297,-175.96,0.00041,2]
[310944501,1704826249307,-8750.0,0.00041,5]
[310944502,1704826249316,-153.0,0.00041,2]
[310944503,1704826249326,-153.0,0.00041,2]
[310944504,1704826249335,-150.0,0.00041005,2]
[310944505,1704826249345,-150.0,0.0004102,2]
[310944506,1704826249354,-150.0,0.00041038,2]
[310944507,1704826249363,-8750.0,0.0004105,5]
[310944508,1704826249373,-8750.0,0.0004105,5]
[310944509,1704826249384,-8750.0,0.0004105,5]
[310944510,1704826249393,-771.26468894,0.00041078,10]
[310944511,1704826249402,-775.57805281,0.00041078,2]
[310944512,1704826249411,-571.02760908,0.00041078,2]
[310944513,1704826249421,-208.12299709,0.00041078,2]
[310944514,1704826249430,-150.0,0.00041085,2]
[310944515,1704826249439,-150.0,0.00041089,2]
[310944516,1704826249448,-3805.9349246,0.00041092,2]
[310944517,1704826249458,-150.0,0.00041094,3]
[310944518,1704826249469,-150.0,0.00041094,3]
[310944519,1704826249478,-150.0,0.00041094,3]
[310944520,1704826249488,-150.0,0.00041094,3]
[310944521,1704826249497,-150.0,0.00041094,3]
[310944522,1704826249506,-150.0,0.00041094,3]
[310944523,1704826249516,-157.804064,0.00041095,7]
[310944524,1704826249525,-152.705734,0.00041095,7]
[310944525,1704826249534,-151.0,0.00041095,7]
[310944526,1704826249543,-151.0,0.00041095,7]
[310944527,1704826249552,-151.0,0.00041095,7]
[310944528,1704826249561,-251.802171,0.00041095,7]
[310944529,1704826249571,-171.419823,0.00041095,7]
[310944530,1704826249580,-226.735693,0.00041095,7]
[310944531,1704826249589,-226.735693,0.00041095,7]
[310944532,1704826249598,-151.0,0.00041095,7]
[310944533,1704826249608,-151.0,0.00041095,7]
[310944534,1704826249617,-151.0,0.00041095,7]
[310944535,1704826249626,-151.0,0.00041095,7]
[310944536,1704826249640,-161.458881,0.00041095,7]
[310944537,1704826249649,-151.0,0.00041095,7]
[310944538,1704826249661,-151.0,0.00041095,7]
[310944539,1704826249670,-151.0,0.00041095,7]
[310944540,1704826249679,-1971.11390251,0.00041095,7]
[310944541,1704826249688,-832.38869155,0.00041095,4]
[310944542,1704826249698,-300.95100612,0.00041095,4]
[310944543,1704826249707,-500.0,0.00041095,30]
[310944544,1704826249716,-1248.33,0.00041095,34]
[310944545,1704826249725,-500.0,0.00041095,30]
[310944546,1704826249735,-1165.27,0.00041095,30]
[310944547,1704826249744,-500.0,0.00041095,30]
[310944548,1704826249755,-501.75263175,0.00041095,30]